fUSD/lending_fUSD_20250630
["ID","MTS","AMOUNT","RATE_DAILY","PERIOD"]
[368653301,1751267457349,-490.0,0.00016712,2]
[368653302,1751267457359,-490.0,0.00016712,2]
[368653303,1751267457368,-604.02879313,0.00016712,2]
[368653304,1751267457377,-2445.31,0.00016712,2]
[368653305,1751267457387,-925.92,0.00016712,2]
[368653306,1751267457396,-490.0,0.00016712,2]
[368653307,1751267457407,-490.0,0.00016712,2]
[368653308,1751267457416,-490.0,0.00016712,2]
[368653309,1751267457425,-490.0,0.00016712,2]
[368653310,1751267457435,-1062.7,0.00016712,2]
[368653311,1751267457444,-600.23,0.00016712,2]
[368653312,1751267457454,-490.0,0.00016712,2]
[368653313,1751267457463,-490.0,0.00016712,2]
[368653314,1751267457473,-490.0,0.00016712,2]
[368653315,1751267457482,-492.05680299,0.00016712,2]
[368653316,1751267457492,-575.86,0.00016712,2]
[368653317,1751267457501,-490.0,0.00016712,2]
[368653318,1751267457510,-490.0,0.00016712,2]
[368653319,1751267457519,-576.25,0.00016712,2]
[368653320,1751267457528,-490.0,0.00016712,2]
[368653321,1751267457537,-1391.24,0.00016712,2]
[368653322,1751267457549,-523.77,0.00016712,2]
[368653323,1751267457558,-490.0,0.00016712,2]
[368653324,1751267457567,-638.22,0.00016712,2]
[368653325,1751267457576,-490.0,0.00016712,2]
[368653326,1751267457586,-1035.49,0.00016712,2]
[368653327,1751267457595,-490.0,0.00016712,2]
[368653328,1751267457604,-490.0,0.00016712,2]
[368653329,1751267457614,-490.0,0.00016712,2]
[368653330,1751267457623,-986.61,0.00016712,2]
[368653331,1751267457633,-490.0,0.00016712,2]
[368653332,1751267457642,-605.08,0.00016712,2]
[368653333,1751267457650,-1639.57,0.00016712,2]
[368653334,1751267457659,-490.0,0.00016712,2]
[368653335,1751267457668,-490.0,0.00016712,2]
[368653336,1751267457677,-1328.29,0.00016712,2]
[368653337,1751267457686,-490.0,0.00016712,2]
[368653338,1751267457695,-490.0,0.00016712,2]
[368653339,1751267457704,-490.0,0.00016712,2]
[368653340,1751267457713,-800.83,0.00016712,2]
[368653341,1751267457722,-971.97,0.00016712,2]
[368653342,1751267457731,-623.84,0.00016712,2]
[368653343,1751267457739,-940.14,0.00016712,2]
[368653344,1751267457748,-490.0,0.00016712,2]
[368653345,1751267457758,-4046.604477,0.00016712,2]
[368653346,1751267457767,-490.0,0.00016712,2]
[368653347,1751267457775,-490.0,0.00016712,2]
[368653348,1751267457784,-490.0,0.00016712,2]
[368653349,1751267457794,-490.0,0.00016712,2]
[368653350,1751267457803,-490.0,0.00016712,2]
[368653351,1751267457812,-490.0,0.00016712,2]
[368653352,1751267457822,-490.0,0.00016712,2]
[368653353,1751267457831,-265.16219852,0.00016712,2]
[368653354,1751267457840,-490.0,0.00016712,2]
[368653355,1751267457850,-534.43,0.00016712,2]
[368653356,1751267457861,-627.73,0.00016712,2]
[368653357,1751267457870,-442.95143734,0.00016712,2]
[368653358,1751267457879,-490.0,0.00016712,2]
[368653359,1751267457888,-490.0,0.00016712,2]
[368653360,1751267457897,-490.0,0.00016712,2]
[368653361,1751267457907,-1749.67,0.00016712,2]
[368653362,1751267457916,-4363.921726,0.00016712,2]
[368653363,1751267457926,-490.0,0.00016712,2]
[368653364,1751267457935,-490.0,0.00016712,2]
[368653365,1751267457944,-490.0,0.00016712,2]
[368653366,1751267457955,-835.69,0.00016712,2]
[368653367,1751267457964,-490.0,0.00016712,2]
[368653368,1751267457973,-490.0,0.00016712,2]
[368653369,1751267457982,-536.25,0.00016712,2]
[368653370,1751267457991,-519.63,0.00016712,2]
[368653371,1751267458000,-524.6120599,0.00016712,2]
[368653372,1751267458009,-3818.829397,0.00016712,2]
[368653373,1751267458018,-490.0,0.00016712,2]
[368653374,1751267458027,-1380.98,0.00016712,2]
[368653375,1751267458036,-1129.16,0.00016712,2]
[368653376,1751267458047,-490.0,0.00016712,2]
[368653377,1751267458058,-1252.21,0.00016712,2]
[368653378,1751267458067,-775.3,0.00016712,2]
[368653379,1751267458077,-490.0,0.00016712,2]
[368653380,1751267458089,-154.8076,0.00016712,2]
[368653381,1751267458098,-505.86513,0.00016712,2]
[368653382,1751267458108,-490.0,0.00016712,2]
[368653383,1751267458117,-490.0,0.00016712,2]
[368653384,1751267458127,-613.46,0.00016712,2]
[368653385,1751267458135,-490.0,0.00016712,2]
[368653386,1751267458144,-581.66,0.00016712,2]
[368653387,1751267458154,-490.0,0.00016712,2]
[368653388,1751267458163,-1521.23,0.00016712,2]
[368653389,1751267458172,-490.0,0.00016712,2]
[368653390,1751267458181,-490.0,0.00016712,2]
[368653391,1751267458189,-501.16,0.00016712,2]
[368653392,1751267458199,-490.0,0.00016712,2]
[368653393,1751267458208,-961.22,0.00016712,2]
[368653394,1751267458217,-490.0,0.00016712,2]
[368653395,1751267458226,-490.0,0.00016712,2]
[368653396,1751267458235,-490.0,0.00016712,2]
[368653397,1751267458244,-2465.21,0.00016712,2]
[368653398,1751267458253,-627.46,0.00016712,2]
[368653399,1751267458262,-1327.29,0.00016712,2]
[368653400,1751267458271,-490.0,0.00016712,2]
[368653401,1751267458279,-497.00682719,0.00016712,2]
[368653402,1751267458288,-660.31,0.00016712,2]
[368653403,1751267458297,-1100.19,0.00016712,2]
[368653404,1751267458306,-490.0,0.00016712,2]
[368653405,1751267458316,-490.0,0.00016712,2]
[368653406,1751267458325,-490.0,0.00016712,2]
[368653407,1751267458334,-490.0,0.00016712,2]
[368653408,1751267458344,-688.07,0.00016712,2]
[368653409,1751267458353,-541.62,0.00016712,2]
[368653410,1751267458362,-1826.2,0.00016712,2]
[368653411,1751267458371,-1485.67,0.00016712,2]
[368653412,1751267458381,-490.0,0.00016712,2]
[368653413,1751267458391,-490.0,0.00016712,2]
[368653414,1751267458399,-205.37783064,0.00016712,2]
[368653415,1751267458409,-722.51,0.00016712,2]
[368653416,1751267458418,-490.0,0.00016712,2]
[368653417,1751267458427,-570.51,0.00016712,2]
[368653418,1751267458436,-490.0,0.00016712,2]
[368653419,1751267458446,-1021.64,0.00016712,2]
[368653420,1751267458455,-490.0,0.00016712,2]
[368653421,1751267458464,-1436.7,0.00016712,2]
[368653422,1751267458473,-490.0,0.00016712,2]
[368653423,1751267458482,-490.0,0.00016712,2]
[368653424,1751267458491,-532.41018161,0.00016712,2]
[368653425,1751267458500,-1311.53,0.00016712,2]
[368653426,1751267458510,-490.0,0.00016712,2]
[368653427,1751267458518,-490.0,0.00016712,2]
[368653428,1751267458528,-490.0,0.00016712,2]
[368653429,1751267458537,-1254.13,0.00016712,2]
[368653430,1751267458546,-490.0,0.00016712,2]
[368653431,1751267458555,-1211.69,0.00016712,2]
[368653432,1751267458564,-1313.75,0.00016712,2]
[368653433,1751267458574,-490.0,0.00016712,2]
[368653434,1751267458583,-530.23,0.00016712,2]
[368653435,1751267458592,-570.68,0.00016712,2]
[368653436,1751267458601,-490.0,0.00016712,2]
[368653437,1751267458610,-490.0,0.00016712,2]
[368653438,1751267458619,-490.0,0.00016712,2]
[368653439,1751267458628,-1623.94,0.00016712,2]
[368653440,1751267458638,-2476.26,0.00016712,2]
[368653441,1751267458647,-641.05,0.00016712,2]
[368653442,1751267458657,-534.37710899,0.00016712,2]
[368653443,1751267458666,-605.17,0.00016712,2]
[368653444,1751267458675,-519.73,0.00016712,2]
[368653445,1751267458684,-490.0,0.00016712,2]
[368653446,1751267458693,-490.0,0.00016712,2]
[368653447,1751267458703,-2476.24,0.00016712,2]
[368653448,1751267458712,-1563.29,0.00016712,2]
[368653449,1751267458721,-773.76,0.00016712,2]
[368653450,1751267458730,-2273.14,0.00016712,2]
[368653451,1751267458739,-490.0,0.00016712,2]
[368653452,1751267458748,-1957.52,0.00016712,2]
[368653453,1751267458757,-647.57,0.00016712,2]
[368653454,1751267458766,-490.0,0.00016712,2]
[368653455,1751267458775,-490.0,0.00016712,2]
[368653456,1751267458784,-493.21634918,0.00016712,2]
[368653457,1751267458793,-490.0,0.00016712,2]
[368653458,1751267458802,-490.0,0.00016712,2]
[368653459,1751267458811,-167.5315557,0.00016712,2]
[368653460,1751267458820,-490.0,0.00016712,2]
[368653461,1751267458830,-490.0,0.00016712,2]
[368653462,1751267458839,-1114.66,0.00016712,2]
[368653463,1751267458848,-490.0,0.00016712,2]
[368653464,1751267458857,-2239.62,0.00016712,2]
[368653465,1751267458866,-490.0,0.00016712,2]
[368653466,1751267458875,-1458.3,0.00016712,2]
[368653467,1751267458884,-490.0,0.00016712,2]
[368653468,1751267458894,-490.0,0.00016712,2]
[368653469,1751267458903,-4010.68,0.00016712,2]
[368653470,1751267458912,-490.0,0.00016712,2]
[368653471,1751267458923,-2108.74,0.00016712,2]
[368653472,1751267458932,-490.0,0.00016712,2]
[368653473,1751267458941,-498.04,0.00016712,2]
[368653474,1751267458951,-1267.58,0.00016712,2]
[368653475,1751267458960,-490.0,0.00016712,2]
[368653476,1751267458969,-490.0,0.00016712,2]
[368653477,1751267458979,-957.35,0.00016712,2]
[368653478,1751267458988,-490.0,0.00016712,2]
[368653479,1751267458997,-490.0,0.00016712,2]
[368653480,1751267459007,-670.71,0.00016712,2]
[368653481,1751267459016,-1688.24,0.00016712,2]
[368653482,1751267459026,-490.0,0.00016712,2]
[368653483,1751267459035,-1289.57,0.00016712,2]
[368653484,1751267459046,-490.0,0.00016712,2]
[368653485,1751267459056,-490.0,0.00016712,2]
[368653486,1751267459066,-490.0,0.00016712,2]
[368653487,1751267459075,-490.0,0.00016712,2]
[368653488,1751267459088,-824.49,0.00016712,2]
[368653489,1751267459098,-584.71,0.00016712,2]
[368653490,1751267459107,-490.0,0.00016712,2]
[368653491,1751267459117,-1185.23,0.00016712,2]
[368653492,1751267459127,-540.88,0.00016712,2]
[368653493,1751267459136,-202.77107973,0.00016712,2]
[368653494,1751267459146,-549.64,0.00016712,2]
[368653495,1751267459157,-490.0,0.00016712,2]
[368653496,1751267459166,-490.0,0.00016712,2]
[368653497,1751267459175,-490.0,0.00016712,2]
[368653498,1751267459186,-490.0,0.00016712,2]
[368653499,1751267459195,-490.0,0.00016712,2]
[368653500,1751267459204,-761.04,0.00016712,2]
[368653501,1751267459214,-490.0,0.00016712,2]
[368653502,1751267459223,-490.0,0.00016712,2]
[368653503,1751267459232,-758.81,0.00016712,2]
[368653504,1751267459242,-490.0,0.00016712,2]
[368653505,1751267459251,-818.23,0.00016712,2]
[368653506,1751267459261,-748.81,0.00016712,2]
[368653507,1751267459271,-1460.14,0.00016712,2]
[368653508,1751267459280,-490.0,0.00016712,2]
[368653509,1751267459290,-728.93,0.00016712,2]
[368653510,1751267459299,-1406.09,0.00016712,2]
[368653511,1751267459309,-490.0,0.00016712,2]
[368653512,1751267459319,-490.0,0.00016712,2]
[368653513,1751267459329,-490.0,0.00016712,2]
[368653514,1751267459339,-490.0,0.00016712,2]
[368653515,1751267459349,-490.0,0.00016712,2]
[368653516,1751267459360,-1218.17,0.00016712,2]
[368653517,1751267459369,-490.0,0.00016712,2]
[368653518,1751267459379,-1208.24,0.00016712,2]
[368653519,1751267459389,-490.0,0.00016712,2]
[368653520,1751267459399,-490.0,0.00016712,2]
[368653521,1751267459410,-1756.52,0.00016712,2]
[368653522,1751267459420,-490.0,0.00016712,2]
[368653523,1751267459430,-408.4397804,0.00016712,2]
[368653524,1751267459440,-673.72,0.00016712,2]
[368653525,1751267459450,-670.95,0.00016712,2]
[368653526,1751267459459,-1311.29,0.00016712,2]
[368653527,1751267459469,-1805.35,0.00016712,2]
[368653528,1751267459479,-1233.48,0.00016712,2]
[368653529,1751267459489,-518.88,0.00016712,2]
[368653530,1751267459498,-1813.53,0.00016712,2]
[368653531,1751267459508,-759.03,0.00016712,2]
[368653532,1751267459518,-490.0,0.00016712,2]
[368653533,1751267459528,-490.0,0.00016712,2]
[368653534,1751267459538,-490.0,0.00016712,2]
[368653535,1751267459548,-490.0,0.00016712,2]
[368653536,1751267459557,-490.0,0.00016712,2]
[368653537,1751267459567,-608.2,0.00016712,2]
[368653538,1751267459577,-1569.86,0.00016712,2]
[368653539,1751267459587,-3911.58,0.00016712,2]
[368653540,1751267459597,-2453.59,0.00016712,2]
[368653541,1751267459607,-986.67,0.00016712,2]
[368653542,1751267459617,-635.27585403,0.00016712,2]
[368653543,1751267459627,-490.0,0.00016712,2]
[368653544,1751267459636,-490.0,0.00016712,2]
[368653545,1751267459646,-534.31,0.00016712,2]
[368653546,1751267459658,-792.03,0.00016712,2]
[368653547,1751267459668,-490.0,0.00016712,2]
[368653548,1751267459678,-490.0,0.00016712,2]
[368653549,1751267459687,-2907.37,0.00016712,2]
[368653550,1751267459697,-1139.12,0.00016712,2]
[368653551,1751267459707,-490.0,0.00016712,2]
[368653552,1751267459716,-1083.01,0.00016712,2]
[368653553,1751267459725,-1525.18,0.00016712,2]
[368653554,1751267459735,-625.36858988,0.00016712,2]
[368653555,1751267459745,-711.7,0.00016712,2]
[368653556,1751267459755,-216.14500021,0.00016712,2]
[368653557,1751267459765,-490.0,0.00016712,2]
[368653558,1751267459774,-805.1,0.00016712,2]
[368653559,1751267459784,-1219.45,0.00016712,2]
[368653560,1751267459794,-2489.82,0.00016712,2]
[368653561,1751267459804,-490.0,0.00016712,2]
[368653562,1751267459814,-490.0,0.00016712,2]
[368653563,1751267459825,-1110.71,0.00016712,2]
[368653564,1751267459835,-2232.05,0.00016712,2]
[368653565,1751267459844,-536.5702308,0.00016712,2]
[368653566,1751267459855,-523.23,0.00016712,2]
[368653567,1751267459865,-905.33,0.00016712,2]
[368653568,1751267459874,-1206.95,0.00016712,2]
[368653569,1751267459884,-490.0,0.00016712,2]
[368653570,1751267459894,-490.0,0.00016712,2]
[368653571,1751267459904,-1032.86,0.00016712,2]
[368653572,1751267459915,-1399.46,0.00016712,2]
[368653573,1751267459924,-2155.96,0.00016712,2]
[368653574,1751267459934,-940.15,0.00016712,2]
[368653575,1751267459943,-798.99,0.00016712,2]
[368653576,1751267459953,-490.0,0.00016712,2]
[368653577,1751267459963,-1151.4,0.00016712,2]
[368653578,1751267459974,-1411.63,0.00016712,2]
[368653579,1751267459983,-490.0,0.00016712,2]
[368653580,1751267459993,-490.0,0.00016712,2]
[368653581,1751267460002,-490.0,0.00016712,2]
[368653582,1751267460012,-490.0,0.00016712,2]
[368653583,1751267460021,-3267.39,0.00016712,2]
[368653584,1751267460031,-1104.08,0.00016712,2]
[368653585,1751267460041,-563.52,0.00016712,2]
[368653586,1751267460051,-701.32,0.00016712,2]
[368653587,1751267460061,-491.33,0.00016712,2]
[368653588,1751267460071,-946.01,0.00016712,2]
[368653589,1751267460088,-1143.09,0.00016712,2]
[368653590,1751267460098,-490.0,0.00016712,2]
[368653591,1751267460108,-2215.67,0.00016712,2]
[368653592,1751267460120,-2238.17,0.00016712,2]
[368653593,1751267460130,-490.0,0.00016712,2]
[368653594,1751267460141,-313.35807093,0.00016712,2]
[368653595,1751267460151,-490.0,0.00016712,2]
[368653596,1751267460163,-1642.95,0.00016712,2]
[368653597,1751267460174,-3529.66,0.00016712,2]
[368653598,1751267460183,-1031.88,0.00016712,2]
[368653599,1751267460193,-490.0,0.00016712,2]
[368653600,1751267460203,-1010.2,0.00016712,2]
[368653601,1751267460213,-667.33,0.00016712,2]
[368653602,1751267460223,-1712.17,0.00016712,2]
[368653603,1751267460235,-490.0,0.00016712,2]
[368653604,1751267460246,-423.64955284,0.00016712,2]
[368653605,1751267460262,-626.08,0.00016712,2]
[368653606,1751267460272,-860.14,0.00016712,2]
[368653607,1751267460283,-490.0,0.00016712,2]
[368653608,1751267460293,-3656.02,0.00016712,2]
[368653609,1751267460304,-834.59,0.00016712,2]
[368653610,1751267460315,-490.0,0.00016712,2]
[368653611,1751267460325,-490.0,0.00016712,2]
[368653612,1751267460336,-490.0,0.00016712,2]
[368653613,1751267460347,-1030.93,0.00016712,2]
[368653614,1751267460358,-490.0,0.00016712,2]
[368653615,1751267460368,-490.0,0.00016712,2]
[368653616,1751267460379,-559.77,0.00016712,2]
[368653617,1751267460390,-490.0,0.00016712,2]
[368653618,1751267460402,-3042.8,0.00016712,2]
[368653619,1751267460412,-490.0,0.00016712,2]
[368653620,1751267460423,-490.0,0.00016712,2]
[368653621,1751267460434,-710.3,0.00016712,2]
[368653622,1751267460445,-959.3,0.00016712,2]
[368653623,1751267460455,-490.0,0.00016712,2]
[368653624,1751267460467,-490.0,0.00016712,2]
[368653625,1751267460478,-2433.91,0.00016712,2]
[368653626,1751267460489,-2258.69,0.00016712,2]
[368653627,1751267460500,-499.19,0.00016712,2]
[368653628,1751267460511,-1546.51,0.00016712,2]
[368653629,1751267460522,-490.0,0.00016712,2]
[368653630,1751267460533,-490.0,0.00016712,2]
[368653631,1751267460544,-490.0,0.00016712,2]
[368653632,1751267460554,-683.3,0.00016712,2]
[368653633,1751267460565,-490.0,0.00016712,2]
[368653634,1751267460575,-1887.4,0.00016712,2]
[368653635,1751267460585,-490.0,0.00016712,2]
[368653636,1751267460597,-533.17,0.00016712,2]
[368653637,1751267460607,-1233.56,0.00016712,2]
[368653638,1751267460617,-490.0,0.00016712,2]
[368653639,1751267460627,-490.0,0.00016712,2]
[368653640,1751267460637,-1913.05,0.00016712,2]
[368653641,1751267460648,-934.44,0.00016712,2]
[368653642,1751267460660,-490.0,0.00016712,2]
[368653643,1751267460670,-557.85,0.00016712,2]
[368653644,1751267460682,-490.0,0.00016712,2]
[368653645,1751267460692,-752.53,0.00016712,2]
[368653646,1751267460702,-731.26,0.00016712,2]
[368653647,1751267460713,-490.0,0.00016712,2]
[368653648,1751267460724,-1839.15,0.00016712,2]
[368653649,1751267460734,-1061.04,0.00016712,2]
[368653650,1751267460746,-1002.9,0.00016712,2]
[368653651,1751267460757,-2501.37,0.00016712,2]
[368653652,1751267460768,-490.0,0.00016712,2]
[368653653,1751267460778,-609.73,0.00016712,2]
[368653654,1751267460790,-490.0,0.00016712,2]
[368653655,1751267460800,-1343.9,0.00016712,2]
[368653656,1751267460810,-490.0,0.00016712,2]
[368653657,1751267460820,-2212.24,0.00016712,2]
[368653658,1751267460830,-490.0,0.00016712,2]
[368653659,1751267460841,-764.05,0.00016712,2]
[368653660,1751267460851,-490.0,0.00016712,2]
[368653661,1751267460861,-490.0,0.00016712,2]
[368653662,1751267460871,-490.0,0.00016712,2]
[368653663,1751267460881,-490.0,0.00016712,2]
[368653664,1751267460891,-2808.96,0.00016712,2]
[368653665,1751267460902,-662.38,0.00016712,2]
[368653666,1751267460912,-671.65,0.00016712,2]
[368653667,1751267460922,-490.0,0.00016712,2]
[368653668,1751267460932,-490.0,0.00016712,2]
[368653669,1751267460942,-507.67,0.00016712,2]
[368653670,1751267460952,-517.86,0.00016712,2]
[368653671,1751267460962,-191.80515094,0.00016712,2]
[368653672,1751267460972,-490.0,0.00016712,2]
[368653673,1751267460982,-490.0,0.00016712,2]
[368653674,1751267460992,-2145.41,0.00016712,2]
[368653675,1751267461002,-490.0,0.00016712,2]
[368653676,1751267461012,-672.85,0.00016712,2]
[368653677,1751267461022,-2284.2,0.00016712,2]
[368653678,1751267461032,-1011.0,0.00016712,2]
[368653679,1751267461043,-490.0,0.00016712,2]
[368653680,1751267461053,-490.0,0.00016712,2]
[368653681,1751267461063,-751.27,0.00016712,2]
[368653682,1751267461074,-490.0,0.00016712,2]
[368653683,1751267461088,-1491.73,0.00016712,2]
[368653684,1751267461099,-875.71,0.00016712,2]
[368653685,1751267461109,-490.0,0.00016712,2]
[368653686,1751267461119,-543.73,0.00016712,2]
[368653687,1751267461131,-2953.96,0.00016712,2]
[368653688,1751267461141,-772.44,0.00016712,2]
[368653689,1751267461465,-1367.71,0.00016712,2]
[368653690,1751267461478,-714.44,0.00016712,2]
[368653691,1751267461487,-1494.37,0.00016712,2]
[368653692,1751267461497,-490.0,0.00016712,2]
[368653693,1751267461507,-663.84,0.00016712,2]
[368653694,1751267461516,-490.0,0.00016712,2]
[368653695,1751267461526,-491.6239939,0.00016712,2]
[368653696,1751267461536,-1079.29,0.00016712,2]
[368653697,1751267461545,-3356.8,0.00016712,2]
[368653698,1751267461555,-490.0,0.00016712,2]
[368653699,1751267461564,-3925.21,0.00016712,2]
[368653700,1751267461574,-1272.02,0.00016712,2]
[368653701,1751267461583,-2472.06,0.00016712,2]
[368653702,1751267461594,-510.15,0.00016712,2]
[368653703,1751267461603,-3282.04,0.00016712,2]
[368653704,1751267461613,-490.0,0.00016712,2]
[368653705,1751267461622,-490.0,0.00016712,2]
[368653706,1751267461632,-490.0,0.00016712,2]
[368653707,1751267461641,-599.25514188,0.00016712,2]
[368653708,1751267461652,-568.77,0.00016712,2]
[368653709,1751267461662,-490.0,0.00016712,2]
[368653710,1751267461672,-2464.47,0.00016712,2]
[368653711,1751267461682,-490.0,0.00016712,2]
[368653712,1751267461692,-490.0,0.00016712,2]
[368653713,1751267461702,-387.50552759,0.00016712,2]
[368653714,1751267461711,-657.57,0.00016712,2]
[368653715,1751267461721,-492.93384265,0.00016712,2]
[368653716,1751267461730,-490.0,0.00016712,2]
[368653717,1751267461740,-1260.99,0.00016712,2]
[368653718,1751267461749,-490.0,0.00016712,2]
[368653719,1751267461758,-490.0,0.00016712,2]
[368653720,1751267461767,-575.9,0.00016712,2]
[368653721,1751267461777,-3486.76,0.00016712,2]
[368653722,1751267461787,-650.41,0.00016712,2]
[368653723,1751267461796,-490.0,0.00016712,2]
[368653724,1751267461806,-490.0,0.00016712,2]
[368653725,1751267461815,-569.55,0.00016712,2]
[368653726,1751267461824,-490.0,0.00016712,2]
[368653727,1751267461835,-490.0,0.00016712,2]
[368653728,1751267461846,-1177.29,0.00016712,2]
[368653729,1751267461855,-490.0,0.00016712,2]
[368653730,1751267461866,-3740.54,0.00016712,2]
[368653731,1751267461875,-625.76,0.00016712,2]
[368653732,1751267461885,-1634.31,0.00016712,2]
[368653733,1751267461894,-490.0,0.00016712,2]
[368653734,1751267461904,-740.73,0.00016712,2]
[368653735,1751267461914,-490.0,0.00016712,2]
[368653736,1751267461924,-490.0,0.00016712,2]
[368653737,1751267461934,-951.92,0.00016712,2]
[368653738,1751267461945,-519.44,0.00016712,2]
[368653739,1751267461954,-490.0,0.00016712,2]
[368653740,1751267461964,-497.64888293,0.00016712,2]
[368653741,1751267461974,-490.0,0.00016712,2]
[368653742,1751267461983,-1372.31,0.00016712,2]
[368653743,1751267461993,-490.0,0.00016712,2]
[368653744,1751267462001,-490.0,0.00016712,2]
[368653745,1751267462011,-490.0,0.00016712,2]
[368653746,1751267462020,-490.0,0.00016712,2]
[368653747,1751267462030,-945.19,0.00016712,2]
[368653748,1751267462039,-586.15,0.00016712,2]
[368653749,1751267462049,-490.0,0.00016712,2]
[368653750,1751267462060,-1141.47,0.00016712,2]
[368653751,1751267462069,-981.2,0.00016712,2]
[368653752,1751267462080,-490.0,0.00016712,2]
[368653753,1751267462094,-490.0,0.00016712,2]
[368653754,1751267462105,-3175.15,0.00016712,2]
[368653755,1751267462116,-490.0,0.00016712,2]
[368653756,1751267462127,-832.07,0.00016712,2]
[368653757,1751267462137,-1170.01,0.00016712,2]
[368653758,1751267462147,-531.2,0.00016712,2]
[368653759,1751267462159,-584.93,0.00016712,2]
[368653760,1751267462169,-490.0,0.00016712,2]
[368653761,1751267462178,-490.0,0.00016712,2]
[368653762,1751267462187,-490.0,0.00016712,2]
[368653763,1751267462196,-2521.62,0.00016712,2]
[368653764,1751267462205,-490.0,0.00016712,2]
[368653765,1751267462214,-1252.54,0.00016712,2]
[368653766,1751267462224,-490.0,0.00016712,2]
[368653767,1751267462234,-922.18,0.00016712,2]
[368653768,1751267462243,-599.14,0.00016712,2]
[368653769,1751267462253,-490.0,0.00016712,2]
[368653770,1751267462262,-3136.28,0.00016712,2]
[368653771,1751267462272,-3097.05,0.00016712,2]
[368653772,1751267462281,-511.63,0.00016712,2]
[368653773,1751267462290,-557.59,0.00016712,2]
[368653774,1751267462300,-215.77325124,0.00016712,2]
[368653775,1751267462309,-490.0,0.00016712,2]
[368653776,1751267462319,-490.0,0.00016712,2]
[368653777,1751267462328,-490.0,0.00016712,2]
[368653778,1751267462336,-490.0,0.00016712,2]
[368653779,1751267462344,-1082.72,0.00016712,2]
[368653780,1751267462352,-490.0,0.00016712,2]
[368653781,1751267462359,-490.0,0.00016712,2]
[368653782,1751267462367,-490.0,0.00016712,2]
[368653783,1751267462376,-490.0,0.00016712,2]
[368653784,1751267462385,-490.0,0.00016712,2]
[368653785,1751267462395,-3323.29,0.00016712,2]
[368653786,1751267462405,-1275.4,0.00016712,2]
[368653787,1751267462414,-896.09,0.00016712,2]
[368653788,1751267462424,-7352.81,0.00016712,2]
[368653789,1751267462433,-490.0,0.00016712,2]
[368653790,1751267462443,-490.0,0.00016712,2]
[368653791,1751267462452,-1187.38,0.00016712,2]
[368653792,1751267462462,-2729.68,0.00016712,2]
[368653793,1751267462472,-490.0,0.00016712,2]
[368653794,1751267462481,-661.4,0.00016712,2]
[368653795,1751267462491,-947.26,0.00016712,2]
[368653796,1751267462501,-3003.1,0.00016712,2]
[368653797,1751267462511,-697.57,0.00016712,2]
[368653798,1751267462520,-490.0,0.00016712,2]
[368653799,1751267462529,-506.42,0.00016712,2]
[368653800,1751267462539,-1404.12,0.00016712,2]